fUSD/lending_fUSD_20251225
["ID","MTS","AMOUNT","RATE_DAILY","PERIOD"]
[399735304,1766644231860,-1821.60408503,0.00011111,2]
[399735305,1766644234408,1000.0,0.0003287,120]
[399735306,1766644237428,-1972.92133469,0.00011111,2]
[399735307,1766644237438,-533.1220983,0.00011111,2]
[399735308,1766644237598,-866.56991668,0.00011111,2]
[399735309,1766644237661,-1275.73454001,0.00011111,2]
[399735310,1766644237671,-154.65956237,0.00011111,2]
[399735311,1766644237681,-503.42768977,0.00011186,2]
[399735312,1766644237692,-500.0,0.00011186,2]
[399735313,1766644237702,-500.0,0.00011186,2]
[399735314,1766644237712,-264.9740596,0.00011186,2]
[399735315,1766644237721,-500.0,0.00011186,2]
[399735316,1766644237730,-500.0,0.00011186,2]
[399735317,1766644237740,-500.0,0.00011186,2]
[399735318,1766644237750,-500.0,0.00011186,2]
[399735319,1766644237759,-500.0,0.00011186,2]
[399735320,1766644237769,-500.0,0.00011186,2]
[399735321,1766644237779,-500.0,0.00011186,2]
[399735322,1766644237789,-418.76902567,0.00011186,2]
[399735323,1766644237800,-500.0,0.00011186,2]
[399735324,1766644237810,-500.0,0.00011186,2]
[399735326,1766644237834,-500.0,0.00011186,2]
[399735327,1766644237844,-574.9889686,0.00011186,2]
[399735329,1766644237853,-500.0,0.00011186,2]
[399735331,1766644237863,-500.0,0.00011186,2]
[399735332,1766644237873,-500.0,0.00011186,2]
[399735333,1766644237883,-500.0,0.00011186,2]
[399735334,1766644237892,-500.0,0.00011186,2]
[399735335,1766644237902,-500.0,0.00011186,2]
[399735336,1766644237911,-311.97789187,0.00011186,2]
[399735337,1766644237921,-500.0,0.00011186,2]
[399735338,1766644237930,-509.75444272,0.00011186,2]
[399735339,1766644237940,-500.0,0.00011186,2]
[399735340,1766644237949,-19999.99,0.00011189,2]
[399735341,1766644237959,-4999.99,0.00011189,2]
[399735342,1766644237968,-150.99,0.00011189,2]
[399735343,1766644237978,-172.93820612,0.00011189,2]
[399735344,1766644237988,-1258.14,0.00011203,2]
[399735345,1766644237999,-200.0,0.00011203,2]
[399735346,1766644238009,-207.4,0.00011203,2]
[399735347,1766644238019,-500.0,0.00011203,2]
[399735348,1766644238029,-151.0,0.00011203,2]
[399735349,1766644238038,-500.0,0.00011203,2]
[399735350,1766644238048,-151.0,0.00011203,2]
[399735351,1766644238057,-500.0,0.00011203,2]
[399735352,1766644238067,-151.0,0.00011203,2]
[399735353,1766644238077,-500.0,0.00011203,2]
[399735354,1766644238088,-151.0,0.00011203,2]
[399735355,1766644238098,-500.0,0.00011203,2]
[399735356,1766644238108,-151.0,0.00011203,2]
[399735357,1766644238122,-500.0,0.00011203,2]
[399735358,1766644238133,-151.0,0.00011203,2]
[399735359,1766644238143,-500.0,0.00011203,2]
[399735360,1766644238152,-151.0,0.00011203,2]
[399735361,1766644238164,-500.0,0.00011203,2]
[399735362,1766644238174,-151.0,0.00011203,2]
[399735363,1766644238183,-500.0,0.00011203,2]
[399735364,1766644238200,-151.0,0.00011203,2]
[399735365,1766644238211,-500.0,0.00011203,2]
[399735366,1766644238221,-151.0,0.00011203,2]
[399735367,1766644238232,-500.0,0.00011203,2]
[399735368,1766644238242,-151.0,0.00011203,2]
[399735369,1766644238252,-500.0,0.00011203,2]
[399735370,1766644238263,-500.0,0.00011203,2]
[399735371,1766644238273,-500.0,0.00011203,2]
[399735372,1766644238283,-500.0,0.00011203,2]
[399735373,1766644238293,-500.0,0.00011203,2]
[399735374,1766644238303,-500.0,0.00011203,2]
[399735375,1766644238314,-500.0,0.00011203,2]
[399735376,1766644238324,-500.0,0.00011203,2]
[399735377,1766644238334,-500.0,0.00011203,2]
[399735378,1766644238344,-151.0,0.00011203,2]
[399735379,1766644238354,-151.0,0.00011203,2]
[399735380,1766644238364,-500.0,0.00011203,2]
[399735381,1766644238375,-151.0,0.00011203,2]
[399735382,1766644238385,-500.0,0.00011203,2]
[399735383,1766644238395,-151.0,0.00011203,2]
[399735384,1766644238405,-151.0,0.00011203,2]
[399735385,1766644238415,-151.0,0.00011203,2]
[399735386,1766644238426,-151.0,0.00011203,2]
[399735387,1766644238436,-151.0,0.00011203,2]
[399735388,1766644238446,-151.0,0.00011203,2]
[399735389,1766644238456,-151.0,0.00011203,2]
[399735390,1766644238467,-151.0,0.00011203,2]
[399735391,1766644238477,-151.0,0.00011203,2]
[399735392,1766644238487,-500.0,0.00011203,2]
[399735393,1766644238498,-151.0,0.00011203,2]
[399735394,1766644238507,-151.0,0.00011203,2]
[399735395,1766644238517,-151.0,0.00011203,2]
[399735396,1766644238527,-151.0,0.00011203,2]
[399735397,1766644238537,-151.0,0.00011203,2]
[399735398,1766644238547,-151.0,0.00011203,2]
[399735399,1766644238563,-151.0,0.00011203,2]
[399735400,1766644238572,-258.0,0.00011203,2]
[399735401,1766644238582,-9999.99,0.00011208,2]
[399735402,1766644238592,-9999.99,0.00011208,2]
[399735403,1766644238602,-999.99,0.00011208,2]
[399735404,1766644238612,-9999.99,0.00011208,2]
[399735405,1766644238622,-299.99,0.00011208,2]
[399735406,1766644238631,-9999.99,0.00011208,2]
[399735407,1766644238641,-150.99,0.00011208,2]
[399735408,1766644238652,-9999.99,0.00011208,2]
[399735409,1766644238662,-336.38,0.00011209,2]
[399735410,1766644238673,-500.0,0.00011209,2]
[399735411,1766644238683,-500.0,0.00011209,2]
[399735412,1766644238694,-326.56225561,0.00011209,2]
[399735413,1766644238705,-500.0,0.00011209,2]
[399735414,1766644238715,-626519.62608546,0.0001121,2]
[399735415,1766644238726,-183296.1784421,0.00011211,2]
[399735416,1766644238736,-1540.7,0.00011289,2]
[399735417,1766644238747,-218.14975262,0.00011399,2]
[399735418,1766644238757,-298.31808987,0.0001141,2]
[399735419,1766644238768,-151.0,0.0001141,2]
[399735420,1766644238778,-151.0,0.0001141,2]
[399735421,1766644238789,-200.0,0.0001141,2]
[399735422,1766644238799,-336.38,0.00011483,2]
[399735423,1766644238810,-1540.7,0.00011603,2]
[399735424,1766644238820,-300.0,0.00011622,2]
[399735425,1766644238831,-300.0,0.00011622,2]
[399735426,1766644238841,-250.0,0.00011622,2]
[399735427,1766644238852,-250.0,0.00011681,2]
[399735428,1766644238862,-250.0,0.00011681,2]
[399735429,1766644238872,-193.58299043,0.00011681,2]
[399735430,1766644238882,-1000.0,0.00011751,2]
[399735431,1766644238892,-200.0,0.00011751,2]
[399735432,1766644238908,-500.0,0.00011751,2]
[399735433,1766644238919,-336.38,0.00011757,2]
[399735434,1766644238929,-2675.42655496,0.00011779,2]
[399735435,1766644238940,-8683.19447782,0.0001179,2]
[399735436,1766644238950,-1540.7,0.00011916,2]
[399735437,1766644238960,-154.6595623,0.00011938,2]
[399735438,1766644238971,-166.66,0.00011969,2]
[399735439,1766644238981,-336.38,0.00012031,2]
[399735440,1766644238991,-172.42730186,0.0001205,2]
[399735441,1766644239002,-420.0,0.00012071,2]
[399735442,1766644239013,-420.0,0.00012071,2]
[399735443,1766644239023,-1680.0,0.00012082,2]
[399735444,1766644239034,-255.0,0.00012153,2]
[399735445,1766644239046,-336.4,0.00012305,2]
[399735446,1766644239058,-166.66,0.00012364,2]
[399735447,1766644239068,-2675.42655496,0.00012447,2]
[399735448,1766644239079,-8683.19447782,0.00012469,2]
[399735449,1766644239089,-166.66,0.0001276,2]
[399735450,1766644239099,-154.6595623,0.00012765,2]
[399735451,1766644239111,-1000.0,0.00013057,2]
[399735452,1766644239123,-2675.42655496,0.00013114,2]
[399735453,1766644239134,-8683.19447782,0.00013148,2]
[399735454,1766644239145,-166.66,0.00013155,2]
[399735455,1766644239156,-250.0,0.00013242,2]
[399735456,1766644239167,-287.0,0.00013265,2]
[399735457,1766644239178,-587.0,0.00013265,2]
[399735458,1766644239189,-5742.52,0.00013266,2]
[399735459,1766644239199,-2351.0,0.00013291,2]
[399735460,1766644239210,-178.0,0.00013298,2]
[399735461,1766644239220,-27026.02,0.00013428,2]
[399735462,1766644239230,-5393.24,0.0001343,2]
[399735463,1766644239240,-150.0,0.0001343,2]
[399735464,1766644239251,-7541.2,0.00013451,2]
[399735465,1766644239261,-15044.79,0.00013454,2]
[399735466,1766644239275,-150.0,0.00013515,2]
[399735467,1766644239286,-166.66,0.0001355,2]
[399735468,1766644239296,-40898.9056503,0.00013584,2]
[399735469,1766644239306,-154.6595623,0.00013592,2]
[399735470,1766644239316,-295.63,0.00013651,2]
[399735471,1766644239327,-2654.97,0.00013673,2]
[399735472,1766644239338,-364.71354413,0.00013698,2]
[399735473,1766644239348,-500.0,0.00013698,2]
[399735474,1766644239359,-500.0,0.00013698,2]
[399735475,1766644239369,-528.48122381,0.00013698,2]
[399735476,1766644239379,-469.51043734,0.00013698,2]
[399735477,1766644239389,-500.0,0.00013698,2]
[399735478,1766644239400,-500.0,0.00013698,2]
[399735479,1766644239411,-391.24830668,0.00013698,2]
[399735480,1766644239421,-414.70631063,0.00013698,2]
[399735482,1766644239431,-500.0,0.00013698,2]
[399735484,1766644239441,-13773.56,0.00013699,2]
[399735486,1766644239452,-1000.0,0.00013699,2]
[399735488,1766644239462,-500.0,0.00013699,2]
[399735490,1766644239472,-500.0,0.00013699,2]
[399735492,1766644239483,-418.32317411,0.00013699,2]
[399735495,1766644239493,-500.0,0.000137,2]
[399735497,1766644239503,-3240.0,0.00013776,2]
[399735499,1766644239513,-2675.42655496,0.00013782,2]
[399735500,1766644239523,-8683.19447782,0.00013827,2]
[399735502,1766644239533,-257.1,0.00013906,2]
[399735504,1766644239543,-20735.04,0.00013914,2]
[399735505,1766644239553,-192.6,0.00013942,2]
[399735507,1766644239563,-166.66,0.00013945,2]
[399735509,1766644239574,-1600.0,0.00014036,2]
[399735511,1766644239584,-1200.54,0.00014036,2]
[399735513,1766644239594,-9125.7793676,0.00014113,2]
[399735515,1766644239604,-1000.0,0.00014363,2]
[399735517,1766644239616,-154.6595623,0.00014419,2]
[399735519,1766644239626,-4942.8802,0.00014439,2]
[399735522,1766644239640,-1000.0,0.00014439,2]
[399735524,1766644239650,-2675.42655496,0.0001445,2]
[399735526,1766644239660,-8683.19447782,0.00014505,2]
[399735528,1766644239670,-200.0,0.00014536,2]
[399735530,1766644239679,-9351.31,0.00014539,2]
[399735532,1766644239689,-823.0,0.00014577,2]
[399735533,1766644239699,-646.0,0.0001462,2]
[399735535,1766644239709,-500.0,0.0001474,2]
[399735537,1766644239720,-166.66,0.00014741,2]
[399735539,1766644239730,-166.66,0.00015051,2]
[399735541,1766644239740,-431.79,0.00015068,2]
[399735543,1766644239750,-2675.42655496,0.00015118,2]
[399735545,1766644239760,-8683.19447782,0.00015184,2]
[399735547,1766644239770,-154.6595623,0.00015246,2]
[399735549,1766644239779,-309.46072033,0.00015341,2]
[399735551,1766644239790,-166.66,0.00015361,2]
[399735553,1766644239799,-1000.0,0.00015668,2]
[399735555,1766644239809,-166.66,0.00015672,2]
[399735557,1766644239820,-2675.42655496,0.00015785,2]
[399735559,1766644239833,-1600.0,0.0001579,2]
[399735561,1766644239844,-8683.19447782,0.00015863,2]
[399735563,1766644239855,-166.66,0.00015982,2]
[399735565,1766644239865,-405.56808186,0.00015992,2]
[399735567,1766644239875,-1060.87558749,0.00015999,5]
[399735569,1766644239885,-159138.82907059,0.00016,2]
[399735571,1766644239895,-611.79223266,0.00016,2]
[399735573,1766644239905,-186251.71012597,0.00016,4]
[399735575,1766644239916,-1152.0,0.00016019,2]
[399735577,1766644239926,-162.74,0.00016063,2]
[399735579,1766644239936,-154.6595623,0.00016073,2]
[399735581,1766644239945,-5528.98,0.00016116,2]
[399735583,1766644239956,-5000.00898991,0.000162,5]
[399735585,1766644239966,-166.66,0.00016292,2]
[399735587,1766644239976,-500.0,0.00016438,2]
[399735589,1766644239986,-500.0,0.00016438,2]
[399735591,1766644239996,-500.0,0.00016438,2]
[399735593,1766644240008,-500.0,0.00016438,2]
[399735595,1766644240018,-304.3575671,0.00016438,2]
[399735597,1766644240027,-600.0,0.00016438,2]
[399735599,1766644240037,-11630.36,0.00016438,2]
[399735601,1766644240048,-431.79,0.00016438,2]
[399735603,1766644240062,-2675.42655496,0.00016453,2]
[399735605,1766644240072,-8683.19447782,0.00016542,2]
[399735607,1766644240081,-358.86034089,0.000166,2]
[399735609,1766644240091,-166.63,0.00016712,2]
[399735611,1766644240102,-500.0,0.00016767,2]
[399735613,1766644240114,-154.6595623,0.000169,2]
[399735615,1766644240124,-285.52393054,0.000169,2]
[399735617,1766644240133,-266.03577327,0.000169,2]
[399735619,1766644240143,-235.22228614,0.000169,2]
[399735621,1766644240154,-449.4468531,0.000169,2]
[399735623,1766644240165,-500.0,0.00016973,2]
[399735625,1766644240175,-500.0,0.00016973,2]
[399735626,1766644240186,-466.57897047,0.00016973,2]
[399735628,1766644240196,-500.0,0.00016973,2]
[399735630,1766644240205,-578.00730891,0.00016973,2]
[399735632,1766644240215,-501.47157547,0.00016973,2]
[399735636,1766644240238,-500.0,0.00016973,2]
[399735638,1766644240249,-502.73869828,0.00016973,2]
[399735640,1766644240259,-500.0,0.00016973,2]
[399735642,1766644240270,-500.0,0.00016973,2]
[399735645,1766644240280,-52287.96,0.00016986,2]
[399735647,1766644240290,-600.0,0.00016986,2]
[399735648,1766644240301,-300.0,0.00016999,2]
[399735649,1766644240311,-2000.0,0.00017,2]
[399735650,1766644240321,-250.0,0.00017,2]
[399735651,1766644240331,-2417873.35328874,0.00017,2]
[399735652,1766644240351,-588.0,0.00017,2]
[399735653,1766644240363,-34217.81106575,0.00017,2]
[399735654,1766644240375,-44326.90274975,0.00017,2]
[399735655,1766644240387,-113268.48184535,0.00017,2]
[399735656,1766644240399,-594.01134136,0.00017,2]
[399735657,1766644240600,-628.0193291,0.00017,2]
[399735658,1766644240621,-1612.51547363,0.00017,2]
[399735659,1766644241288,-1.7e-07,0.0001355,2]
[399735661,1766644242251,1000.0,0.0003287,120]
[399735662,1766644242750,-150.99999983,0.0001355,2]
[399735663,1766644242760,-151.0,0.00013942,2]
[399735664,1766644242770,-828.4007303,0.00017,2]
[399735665,1766644242782,-469.06607036,0.00017,2]
[399735666,1766644242795,-3568.0,0.00017,2]
[399735667,1766644242806,-597.01482133,0.00017,2]
[399735668,1766644242823,-508.95983032,0.00017,2]
[399735669,1766644242864,-5367.24468237,0.00017,2]
[399735671,1766644242876,-17668.4420146,0.00017,2]
[399735675,1766644245440,-349.87046341,0.00017,2]
[399735676,1766644245454,-808.13842488,0.00017,2]
[399735677,1766644245501,-365.6300001,0.00017,2]
[399735678,1766644245514,-115294.84255399,0.00017,2]
[399735679,1766644245672,-6556.42355414,0.00017,2]
[399735680,1766644245734,-304.22,0.00017,2]
[399735681,1766644245751,-1734.15988836,0.00017,2]
[399735684,1766644261328,1000.0,0.0003287,120]
[399735685,1766644265104,1000.0,0.0003287,120]
[399735686,1766644275021,1000.0,0.0003287,120]
[399735687,1766644279696,1000.0,0.0003287,120]
[399735689,1766644291512,1000.0,0.0003287,120]
[399735690,1766644297179,-793.04689128,0.00010791,2]
[399735691,1766644299686,-328.4,0.00010791,2]
[399735692,1766644301082,-385.58142651,0.00010791,2]
[399735693,1766644301507,1000.0,0.0003287,120]
[399735694,1766644304471,-516.43991956,0.00010791,2]
[399735695,1766644308287,1000.0,0.0003287,120]
[399735697,1766644309325,-190.30025053,0.00010791,2]
[399735698,1766644311439,-398.4677256,0.00010791,2]
[399735699,1766644316601,-423.0407961,0.00010791,2]
[399735700,1766644317390,1000.0,0.0003287,120]
[399735701,1766644318210,-534.51046589,0.00010791,2]
[399735702,1766644320258,-300.0,0.00010791,2]
[399735703,1766644322451,972.85588066,0.0003287,120]
[399735704,1766644327602,1000.0,0.0003287,120]
[399735706,1766644340581,1000.0,0.0003287,120]
[399735708,1766644351574,1000.0,0.0003287,120]
[399735709,1766644359129,1000.0,0.0003287,120]
[399735710,1766644361954,1708.0,0.0003287,120]
[399735711,1766644362489,1605.0,0.0003287,120]
[399735712,1766644364604,447.0,0.0003287,120]
[399735713,1766644365388,228.15569484,0.0003287,120]
[399735714,1766644365697,319.96,0.0003287,120]
[399735715,1766644368631,1000.0,0.0003287,120]
[399735716,1766644376406,1000.0,0.0003287,120]
[399735718,1766644380864,1000.0,0.0003287,120]
[399735721,1766644386348,1000.0,0.0003287,120]
[399735722,1766644387767,217.19,0.00031507,120]
[399735727,1766644397515,1000.0,0.0003287,120]
[399735728,1766644402561,-500.0,0.00010791,2]
[399735729,1766644404104,-388.841761,0.00010791,2]
[399735731,1766644404429,1000.0,0.0003287,120]
[399735732,1766644405542,-178.01205043,0.00010791,2]
[399735733,1766644408254,-107.2177131,0.00010791,2]
[399735734,1766644408297,-189.79791464,0.00010791,2]
[399735735,1766644413842,1000.0,0.0003287,120]
[399735736,1766644420410,1000.0,0.0003287,120]
[399735737,1766644424261,1024.0,0.0003287,120]
[399735738,1766644425057,839.0,0.0003287,120]
[399735739,1766644430475,1000.0,0.0003287,120]
[399735740,1766644432061,-163.38808536,0.00010791,2]
[399735741,1766644432099,-60.63983516,0.00011008,2]
[399735743,1766644437196,1000.0,0.0003287,120]
[399735744,1766644441027,1000.0,0.0003287,120]
[399735745,1766644450281,1000.0,0.0003287,120]
[399735746,1766644454659,459.19,0.0003287,120]
[399735747,1766644458951,1000.0,0.0003287,120]
[399735748,1766644461953,-177.51129555,0.00010911,2]
[399735749,1766644466700,1000.0,0.0003287,120]
[399735750,1766644481512,261.0,0.0003287,120]
[399735751,1766644486441,-503.71860445,0.00010911,2]
[399735752,1766644486482,-364.01505044,0.00010999,2]
[399735753,1766644486521,-343.51681211,0.00011008,2]
[399735754,1766644486557,-407.4100928,0.00011008,2]
[399735755,1766644486594,-300.0,0.00011008,2]
[399735756,1766644486630,-250.0,0.00011009,2]
[399735757,1766644486666,-300.0,0.00011009,2]
[399735758,1766644486702,-1200.0,0.00011009,2]
[399735759,1766644486742,-500.0,0.00011009,2]
[399735760,1766644486782,-500.0,0.00011009,2]
[399735761,1766644486820,-162.6888804,0.00011009,2]
[399735762,1766644486976,-337.3111196,0.00011009,2]
[399735763,1766644487021,-500.0,0.00011009,2]
[399735764,1766644487068,-500.0,0.00011009,2]
[399735765,1766644487107,-500.0,0.00011009,2]
[399735766,1766644487697,-500.0,0.00011009,2]
[399735767,1766644487767,-500.0,0.00011009,2]
[399735768,1766644487803,-500.0,0.00011009,2]
[399735769,1766644487838,-500.0,0.00011009,2]
[399735770,1766644487873,-500.0,0.00011009,2]
[399735771,1766644487907,-500.0,0.00011009,2]
[399735772,1766644488008,-500.0,0.00011009,2]
[399735773,1766644488046,-500.0,0.00011009,2]
[399735774,1766644488087,-500.0,0.00011009,2]
[399735775,1766644488124,-500.0,0.00011009,2]
[399735776,1766644488161,-500.0,0.00011009,2]
[399735777,1766644488199,-500.0,0.00011009,2]
[399735778,1766644488237,-500.0,0.00011009,2]
[399735779,1766644488275,-500.0,0.00011009,2]
[399735780,1766644488313,-500.0,0.00011009,2]
[399735781,1766644488352,-500.0,0.00011009,2]
[399735782,1766644488865,-162.6988804,0.00011009,2]
[399735783,1766644488887,-458.44196414,0.00011009,2]
[399735784,1766644488897,-41.55803586,0.00011009,2]
[399735785,1766644488922,-0.01,0.00011009,2]
[399735786,1766644488995,179.53557823,0.000328,120]
[399735787,1766644489463,-458.43196414,0.00011009,2]
[399735788,1766644489502,-500.0,0.00011009,2]
[399735789,1766644489539,-500.0,0.00011009,2]
[399735790,1766644489577,-500.0,0.00011009,2]
[399735791,1766644489614,-500.0,0.00011009,2]
[399735792,1766644489651,-500.0,0.00011009,2]
[399735793,1766644489687,-500.0,0.00011009,2]
[399735794,1766644489723,-500.0,0.00011009,2]
[399735795,1766644489752,-157.64100285,0.00011009,2]
[399735796,1766644489787,-500.0,0.00011009,2]
[399735797,1766644489817,-267.86406602,0.00011009,2]
[399735798,1766644489962,-232.13593398,0.00011009,2]
[399735799,1766644489999,-500.0,0.00011009,2]
[399735800,1766644490030,-264.9740596,0.00011009,2]
[399735801,1766644490067,-500.0,0.00011009,2]
[399735802,1766644490098,-418.76902567,0.00011009,2]
[399735803,1766644490134,-500.0,0.00011009,2]
[399735804,1766644490171,-500.0,0.00011009,2]
[399735805,1766644490203,-500.0,0.00011009,2]
[399735806,1766644490238,-500.0,0.00011009,2]
[399735807,1766644490276,-500.0,0.00011009,2]
[399735808,1766644490312,-500.0,0.00011009,2]
[399735809,1766644490671,-180.78010268,0.00011009,2]
[399735810,1766644490681,-84.19395692,0.00011009,2]
[399735811,1766644490697,-168.2519615,0.00011009,2]
[399735812,1766644492406,-247.55408158,0.00011009,2]
[399735813,1766644492446,-500.0,0.00011009,2]
[399735814,1766644492484,-500.0,0.00011009,2]
[399735815,1766644492531,-500.0,0.00011009,2]
[399735816,1766644492563,-503.42768977,0.00011009,2]
[399735817,1766644492595,-500.0,0.00011009,2]
[399735818,1766644492625,-500.0,0.00011009,2]
[399735819,1766644492654,-500.0,0.00011009,2]
[399735820,1766644492684,-509.75444272,0.00011009,2]
[399735821,1766644492718,-500.0,0.00011009,2]
[399735822,1766644492909,-478.53757186,0.00011009,2]
[399735823,1766644495441,-21.46242814,0.00011009,2]
[399735824,1766644495474,-500.0,0.00011009,2]
[399735825,1766644495507,-574.9889686,0.00011009,2]
[399735826,1766644495549,-500.0,0.00011009,2]
[399735827,1766644495591,-177.51129555,0.00011009,2]
[399735828,1766644495625,-500.0,0.00011009,2]
[399735829,1766644495661,-250.0,0.00011009,2]
[399735830,1766644495695,-221.62053818,0.0001101,2]
[399735831,1766644495728,-220.20884978,0.0001101,2]
[399735832,1766644495762,-500.0,0.0001101,2]
[399735833,1766644495795,-500.0,0.0001101,2]
[399735834,1766644495828,-278.59357893,0.0001101,2]
[399735835,1766644495861,-547.96867668,0.0001101,2]
[399735836,1766644496122,-500.0,0.00011009,2]
[399735837,1766644496274,-9915.31132828,0.0001101,2]
[399735838,1766644496296,-500.0,0.0001101,2]
[399735839,1766644496314,-9000.01,0.0001101,2]
[399735840,1766644499764,-10000.01,0.0001101,2]
[399735841,1766644499980,-10000.01,0.0001101,2]
[399735842,1766644500157,-3857.75581009,0.0001101,2]
[399735843,1766644500190,-150.0,0.0001101,2]
[399735844,1766644500224,-300.0,0.0001101,2]
[399735845,1766644500257,-150.0,0.0001101,2]
[399735846,1766644500599,-1084.49837982,0.00011011,2]
[399735847,1766644500632,-10000.01,0.00011011,2]
[399735848,1766644503639,-300.0,0.00011009,2]
[399735849,1766644503706,-1200.0,0.00011009,2]
[399735850,1766644503805,-7000.01,0.00011011,2]
[399735851,1766644503849,-10000.01,0.00011011,2]
[399735852,1766644503936,-10000.01,0.00011011,2]
[399735853,1766644504134,-10000.01,0.00011011,2]
[399735854,1766644511291,865.98,0.00032877,120]
[399735855,1766644523142,-500.0,0.00010911,2]
[399735856,1766644523181,-1881.65,0.00011009,2]
[399735857,1766644523249,-5236.71,0.00011011,2]
[399735858,1766644523303,170.97,9.066e-05,2]
[399735859,1766644523348,-9829.04,0.00011011,2]
[399735860,1766644523451,-10000.01,0.00011011,2]
[399735861,1766644523504,170.97,0.00010199,2]
[399735862,1766644523591,-9829.04,0.00011011,2]
[399735863,1766644523722,-10000.01,0.00011011,2]
[399735864,1766644523852,-10000.01,0.00011011,2]
[399735865,1766644524230,-10000.01,0.00011011,2]
[399735866,1766644524372,-10000.01,0.00011011,2]
[399735867,1766644525914,-10000.01,0.00011011,2]
[399735869,1766644533045,-10000.01,0.00011011,2]
[399735870,1766644540115,-532.83812562,0.00011009,2]
[399735871,1766644540163,-8934.33374876,0.00011011,2]
[399735872,1766644541473,761.0,0.0003287,120]
[399735873,1766644544592,-10000.01,0.00011011,2]
[399735874,1766644544815,-10000.01,0.00011011,2]
[399735875,1766644545008,-10000.01,0.00011011,2]
[399735876,1766644545134,-10000.01,0.00011011,2]
[399735877,1766644548462,-10000.01,0.00011011,2]
[399735878,1766644552617,-10000.01,0.00011011,2]
[399735879,1766644552745,-10000.01,0.00011011,2]
[399735880,1766644552897,-10000.01,0.00011011,2]
[399735881,1766644553071,-10000.01,0.00011011,2]
[399735882,1766644564776,-2500.0,0.00010911,2]
[399735883,1766644564815,-300.0,0.0001101,2]
[399735884,1766644564853,-150.0,0.0001101,2]
[399735885,1766644565147,-4100.01,0.00011011,2]
[399735886,1766644565204,-10000.01,0.00011011,2]
[399735887,1766644565240,-10000.01,0.00011011,2]
[399735888,1766644603244,518.65245469,0.0003287,120]
[399735890,1766644627713,-198.47416993,0.00010911,2]
[399735891,1766644630213,-253.25722882,0.00010911,2]
[399735893,1766644657569,-312.08786961,0.00010811,2]
[399735894,1766644660835,-182.95894289,0.00010811,2]
[399735895,1766644688155,-369.95044646,0.00010593,2]
[399735896,1766644692379,-197.0355323,0.00010592,2]
[399735898,1766644695027,-255.76061465,0.0001054,2]
[399735899,1766644698926,-210.55582332,0.0001054,2]
[399735902,1766644702488,-28.73037403,0.0001054,2]
[399735903,1766644702516,-180.29276515,0.00010592,2]
[399735904,1766644704560,-373.13593148,0.00010592,2]
[399735907,1766644708342,-263.16667018,0.00010592,2]
[399735909,1766644709794,-159.41244379,0.00010592,2]
[399735910,1766644711271,-26.9566571,0.00010592,2]
[399735911,1766644711302,-180.2933429,0.00010593,2]
[399735913,1766644713953,-187.44435304,0.00010593,2]
[399735914,1766644716331,-398.40954132,0.00010593,2]
[399735916,1766644719597,-519.08783484,0.00010593,2]
[399735917,1766644722193,-178.68706295,0.00010593,2]
[399735918,1766644724327,-243.83467746,0.00010593,2]
[399735919,1766644727595,-177.44729373,0.00010593,2]
[399735920,1766644729141,-186.94892859,0.00010593,2]
[399735921,1766644733075,-424.01315613,0.00010593,2]